[Event "Germany Countries-chT Youth 2022"]
[Site "Wiesbaden"]
[Date "2022.10.01"]
[Round "2"]
[White "Mueller, Sophie Charlotte"]
[Black "Malinowsky, Levi"]
[Result "0-1"]
[ECO "B20"]
[WhiteElo "1435"]
[BlackElo "1879"]
[Annotator "NA COMBH"]
[PlyCount "98"]
[EventDate "2022.09.28"]
[EventType "team-tourn"]
[EventRounds "7"]
[EventCountry "GER"]
[SourceTitle "playchess.com"]
[Source "ChessBase"]
[SourceQuality "1"]
[TimeControl "40/5400+30:1800+30"]

1. e4 {[%emt 0:00:03]} c5 {[%emt 0:00:09]} 2. d3 {[%emt 0:00:05]} Nc6 {[%emt 0:00:41]} 3. Nd2 {[%emt 0:00:34]} d6 {[%emt 0:01:41]} 4. g3 {[%emt 0:00:08]} g6 {[%emt 0:01:23]} 5. Bg2 {[%emt 0:00:13]} Bg7 {[%emt 0:00:07]} 6. Ngf3 {[%emt 0:00:24]} e5 {[%emt 0:01:52]} 7. O-O {[%emt 0:00:39]} f5 {[%emt 0:01:31]} 8. exf5 {[%emt 0:09:38]} Bxf5 {[%emt 0:00:13]} 9. Re1 {[%emt 0:05:31]} Qd7 {[%emt 0:03:30]} 10. Ne4 {[%emt 0:09:27]} O-O-O {[%emt 0:02:40]} 11. Bg5 {[%emt 0:04:02]} Rf8 {[%emt 0:02:26]} 12. Nfd2 {[%emt 0:08:31]} h6 {[%emt 0:02:27]} 13. Be3 {[%emt 0:03:13]} Nf6 {[%emt 0:07:09]} 14. Nc4 {[%emt 0:02:48]} Ne8 {[%emt 0:02:35]} 15. a4 {[%emt 0:04:09]} b6 $18 {[%emt 0:05:04]} (15... h5 $16) 16. Nc3 {[%emt 0:03:22]} Nf6 {[%emt 0:08:57]} 17. Nb5 {[%emt 0:07:24]} d5 {[%emt 0:04:07]} 18. a5 {[%emt 0:11:39]} Nxa5 {[%emt 0:06:41]} 19. Nxa5 {[%emt 0:01:33]} Qxb5 {[%emt 0:02:04]} 20. Nb3 {[%emt 0:00:20]} a5 {[%emt 0:01:54]} 21. Bxc5 {[%emt 0:06:03]} bxc5 {[%emt 0:02:08]} 22. Rxa5 {[%emt 0:00:08]} Qb6 {[%emt 0:01:15]} 23. Rxc5+ {[%emt 0:00:08]} Kb8 {[%emt 0:01:15]} 24. c4 {[%emt 0:05:29]} Bd7 {[%emt 0:03:46]} 25. d4 {[%emt 0:06:59]} Ba4 {[%emt 0:02:44]} 26. Qd3 {[%emt 0:05:40]} e4 {[%emt 0:07:52]} 27. Qc3 {[%emt 0:00:32]} Rc8 {[%emt 0:07:57]} 28. Rxc8+ {[%emt 0:01:04]} Rxc8 {[%emt 0:01:41]} 29. Nc5 {[%emt 0:00:19]} Bc6 {[%emt 0:02:51]} 30. b4 {[%emt 0:00:51]} dxc4 {[%emt 0:08:19]} 31. Qxc4 {[%emt 0:01:23]} Bd5 {[%emt 0:02:46]} 32. Qc3 {[%emt 0:00:54]} Bc6 {[%emt 0:01:40]} 33. Ra1 {[%emt 0:00:36]} Re8 {[%emt 0:02:21]} 34. Ra6 {[%emt 0:00:42]} Qc7 {[%emt 0:00:57]} 35. b5 {[%emt 0:01:29]} Bb7 {[%emt 0:01:23]} 36. Ra3 {[%emt 0:00:25]} Nd5 {[%emt 0:00:52]} 37. Qb2 {[%emt 0:00:54]} Qxc5 {[%emt 0:00:35]} 38. dxc5 {[%emt 0:00:57]} Bxb2 {[%emt 0:00:06]} 39. Rb3 {[%emt 0:00:28]} Bd4 {[%emt 0:00:25]} 40. c6 {[%emt 0:00:14]} Bc8 {[%emt 0:00:11]} 41. Rb1 {[%emt 0:02:27]} e3 {[%emt 0:01:07]} 42. fxe3 {[%emt 0:00:42]} Nxe3 {[%emt 0:00:07]} 43. Kh1 {[%emt 0:01:24]} Nxg2 {[%emt 0:00:17]} 44. Kxg2 {[%emt 0:00:02]} h5 {[%emt 0:00:18]} 45. b6 {[%emt 0:01:30]} Re2+ {[%emt 0:00:22]} 46. Kf3 {[%emt 0:00:26]} Bg4+ {[%emt 0:00:08]} 47. Kf4 {[%emt 0:00:11]} Bf6 {[%emt 0:00:54]} 48. h4 {[%emt 0:00:33]} g5+ {[%emt 0:01:29]} 49. hxg5 {[%emt 0:00:16]} Be5# {[%emt 0:00:05]} 0-1

[Event "Germany Countries-chT Youth 2022"]
[Site "Wiesbaden"]
[Date "2022.10.01"]
[Round "2"]
[White "Dohon, Maria-Johanna"]
[Black "Ulrich, Helena Irene"]
[Result "0-1"]
[ECO "B33"]
[WhiteElo "1430"]
[BlackElo "1573"]
[Annotator "NA RC COMBH"]
[PlyCount "38"]
[EventDate "2022.09.28"]
[EventType "team-tourn"]
[EventRounds "7"]
[EventCountry "GER"]
[SourceTitle "playchess.com"]
[Source "ChessBase"]
[SourceQuality "1"]
[TimeControl "40/5400+30:1800+30"]

1. e4 {[%emt 0:00:02]} c5 {[%emt 0:00:04]} 2. Nf3 {[%emt 0:00:08]} Nc6 {[%emt 0:00:05]} 3. d4 {[%emt 0:00:15]} cxd4 {[%emt 0:00:12]} 4. Nxd4 {[%emt 0:00:07]} Nf6 {[%emt 0:00:07]} 5. Nc3 {[%emt 0:00:07]} e5 {[%emt 0:00:21]} 6. Ndb5 {[%emt 0:00:07]} d6 {[%emt 0:00:17]} 7. Bg5 {[%emt 0:00:21]} a6 {[%emt 0:00:29]} 8. Na3 {[%emt 0:00:07]} b5 {[%emt 0:00:03]} 9. Nd5 {[%emt 0:00:10]} Be7 {[%emt 0:00:03]} 10. Bxf6 {[%emt 0:00:10]} Bxf6 {[%emt 0:00:04]} 11. c3 {[%emt 0:00:08]} Bg5 {[%emt 0:01:19]} 12. Nc2 {[%emt 0:01:00]} O-O {[%emt 0:00:25]} 13. g3 {[%emt 0:02:03]} Be6 {[%emt 0:06:24]} 14. h4 {[%emt 0:03:34]} Bh6 {[%emt 0:06:14]} 15. Bh3 {[%emt 0:10:44]} Bxh3 {[%emt 0:20:31]} 16. Rxh3 {[%emt 0:00:07]} Rb8 {[%emt 0:01:55]} 17. g4 {[%emt 0:16:10]} Bf4 {[%emt 0:11:32]} 18. Qf3 {[%emt 0:08:46]} Re8 {[%emt 0:01:41]} 19. g5 {[%emt 0:07:39]} a5 {[%emt 0:07:18]} 0-1

[Event "Germany Countries-chT Youth 2022"]
[Site "Wiesbaden"]
[Date "2022.10.01"]
[Round "2"]
[White "Kutz, Ida Klara"]
[Black "Chandrasekher, Ritu"]
[Result "1-0"]
[ECO "A29"]
[WhiteElo "1411"]
[BlackElo "1262"]
[Annotator "NA COMBH"]
[PlyCount "145"]
[EventDate "2022.09.28"]
[EventType "team-tourn"]
[EventRounds "7"]
[EventCountry "GER"]
[SourceTitle "playchess.com"]
[Source "ChessBase"]
[SourceQuality "1"]
[TimeControl "40/5400+30:1800+30"]

1. c4 {[%emt 0:00:03]} e5 {[%emt 0:00:09]} 2. Nc3 {[%emt 0:00:14]} Nf6 {[%emt 0:00:10]} 3. Nf3 {[%emt 0:00:15]} Nc6 {[%emt 0:00:07]} 4. g3 {[%emt 0:01:22]} d5 {[%emt 0:00:27]} 5. cxd5 {[%emt 0:00:23]} Nxd5 {[%emt 0:00:29]} 6. Bg2 {[%emt 0:01:13]} Nb6 {[%emt 0:00:47]} 7. O-O {[%emt 0:00:48]} Be7 {[%emt 0:00:46]} 8. e3 {[%emt 0:01:47]} O-O {[%emt 0:01:14]} 9. d4 {[%emt 0:01:28]} Bd6 {[%emt 0:02:40]} 10. dxe5 {[%emt 0:02:01]} Nxe5 {[%emt 0:03:05]} 11. Ne4 {[%emt 0:03:53]} Nxf3+ {[%emt 0:04:37]} 12. Bxf3 {[%emt 0:01:46]} Be7 {[%emt 0:02:48]} 13. b3 {[%emt 0:02:44]} Bf5 {[%emt 0:05:21]} 14. Bb2 {[%emt 0:02:03]} Re8 {[%emt 0:10:14]} 15. Qd4 {[%emt 0:02:56]} Qxd4 {[%emt 0:03:02]} 16. Bxd4 {[%emt 0:00:16]} Bb4 {[%emt 0:04:35]} 17. Nc5 {[%emt 0:06:00]} Bxc5 {[%emt 0:02:09]} 18. Bxc5 {[%emt 0:01:55]} c6 {[%emt 0:01:36]} 19. Rfd1 {[%emt 0:02:39]} Rad8 {[%emt 0:03:13]} 20. Rd4 {[%emt 0:01:14]} Rxd4 {[%emt 0:02:10]} 21. Bxd4 {[%emt 0:00:46]} Rd8 {[%emt 0:02:23]} 22. Rc1 {[%emt 0:00:53]} h6 {[%emt 0:01:18]} 23. Rc5 {[%emt 0:02:18]} Bb1 {[%emt 0:04:16]} 24. a3 {[%emt 0:01:17]} Ba2 {[%emt 0:01:08]} 25. b4 {[%emt 0:01:58]} Bd5 {[%emt 0:01:23]} 26. Be2 {[%emt 0:01:05]} Nc8 {[%emt 0:03:57]} 27. Bd3 {[%emt 0:02:04]} b6 {[%emt 0:00:56]} 28. Rc1 {[%emt 0:00:42]} Nd6 {[%emt 0:01:55]} 29. Kf1 {[%emt 0:04:37]} Ne4 {[%emt 0:01:30]} 30. Ke2 {[%emt 0:01:07]} Ng5 {[%emt 0:07:01]} 31. Bc4 {[%emt 0:06:24]} Bf3+ {[%emt 0:02:05]} 32. Ke1 {[%emt 0:05:30]} Be4 {[%emt 0:03:07]} 33. Be2 {[%emt 0:02:57]} Bf3 {[%emt 0:03:09]} 34. h4 {[%emt 0:02:04]} Bxe2 {[%emt 0:01:47]} 35. hxg5 {[%emt 0:01:37]} Bf3 {[%emt 0:00:46]} 36. gxh6 {[%emt 0:00:51]} gxh6 {[%emt 0:00:11]} 37. Kd2 {[%emt 0:02:27]} a5 {[%emt 0:02:30]} 38. bxa5 {[%emt 0:00:30]} c5 {[%emt 0:01:08]} 39. axb6 {[%emt 0:00:38]} cxd4 {[%emt 0:01:14]} 40. exd4 {[%emt 0:00:37]} Bb7 {[%emt 0:00:30]} 41. Ke3 {[%emt 0:30:35]} Rd6 {[%emt 0:31:35]} 42. Rb1 {[%emt 0:00:39]} Re6+ {[%emt 0:00:22]} 43. Kd2 {[%emt 0:00:24]} Rd6 {[%emt 0:01:11]} 44. Rb4 {[%emt 0:01:06]} Kf8 {[%emt 0:02:45]} 45. a4 {[%emt 0:03:49]} Rd5 {[%emt 0:00:49]} 46. Kc3 {[%emt 0:01:47]} Ke7 {[%emt 0:00:26]} 47. Rc4 {[%emt 0:01:53]} Rd7 {[%emt 0:03:21]} 48. Kb4 {[%emt 0:02:39]} Kd6 {[%emt 0:01:08]} 49. Rc5 {[%emt 0:00:24]} Ke6 {[%emt 0:02:05]} 50. Kc4 {[%emt 0:01:15]} Rd6 {[%emt 0:01:35]} 51. a5 {[%emt 0:01:03]} Ba6+ {[%emt 0:00:48]} 52. Kc3 {[%emt 0:01:23]} Rd5 {[%emt 0:01:12]} 53. f4 {[%emt 0:07:01]} Rxc5+ {[%emt 0:01:09]} 54. dxc5 {[%emt 0:00:09]} Kd5 {[%emt 0:01:08]} 55. Kd2 {[%emt 0:01:15]} Kxc5 {[%emt 0:00:56]} 56. Ke3 {[%emt 0:00:27]} h5 {[%emt 0:02:44]} 57. Ke4 {[%emt 0:00:35]} f6 {[%emt 0:00:34]} 58. Kf5 {[%emt 0:00:37]} Kd4 {[%emt 0:02:10]} 59. Kxf6 {[%emt 0:01:19]} Ke4 {[%emt 0:01:03]} 60. Kg5 {[%emt 0:00:45]} Kf3 {[%emt 0:00:00]} 61. Kxh5 {[%emt 0:00:00]} Kxg3 {[%emt 0:00:00]} 62. f5 {[%emt 0:00:00]} Kf4 {[%emt 0:00:00]} 63. Kg6 {[%emt 0:00:00]} Bc8 {[%emt 0:00:00]} 64. f6 {[%emt 0:00:00]} Bf5+ {[%emt 0:00:00]} 65. Kg7 {[%emt 0:00:00]} Be6 {[%emt 0:00:00]} 66. b7 {[%emt 0:00:00]} Ke4 {[%emt 0:00:00]} 67. b8=Q {[%emt 0:00:00]} Kd4 {[%emt 0:00:00]} 68. f7 {[%emt 0:00:00]} Kd5 {[%emt 0:00:00]} 69. Kf6 {[%emt 0:00:00]} Bd7 {[%emt 0:00:00]} 70. Qe5+ {[%emt 0:00:00]} Kc6 {[%emt 0:00:00]} 71. f8=Q {[%emt 0:00:00]} Kb7 {[%emt 0:00:00]} 72. Qfb8+ {[%emt 0:00:00]} Kc6 {[%emt 0:00:00]} 73. Qbc7# {[%emt 0:00:00]} 1-0

[Event "Germany Countries-chT Youth 2022"]
[Site "Wiesbaden"]
[Date "2022.10.01"]
[Round "2"]
[White "Gavrylyuk, Oleksandr"]
[Black "Guo, Philipp Ziming"]
[Result "0-1"]
[ECO "B92"]
[WhiteElo "1263"]
[BlackElo "1851"]
[Annotator "NA COMBH"]
[PlyCount "62"]
[EventDate "2022.09.28"]
[EventType "team-tourn"]
[EventRounds "7"]
[EventCountry "GER"]
[SourceTitle "playchess.com"]
[Source "ChessBase"]
[SourceQuality "1"]
[TimeControl "40/5400+30:1800+30"]

1. e4 {[%emt 0:00:03]} c5 {[%emt 0:00:22]} 2. Nf3 {[%emt 0:00:10]} d6 {[%emt 0:00:07]} 3. d4 {[%emt 0:00:07]} cxd4 {[%emt 0:00:06]} 4. Nxd4 {[%emt 0:00:07]} Nf6 {[%emt 0:00:08]} 5. Nc3 {[%emt 0:00:09]} a6 {[%emt 0:00:06]} 6. Be2 {[%emt 0:00:07]} e5 {[%emt 0:00:13]} 7. Nb3 {[%emt 0:00:07]} Be6 {[%emt 0:00:24]} 8. f3 {[%emt 0:00:32]} Be7 {[%emt 0:02:40]} 9. Be3 {[%emt 0:00:43]} Nbd7 {[%emt 0:02:15]} 10. O-O {[%emt 0:00:45]} O-O {[%emt 0:01:18]} 11. Qd2 {[%emt 0:01:44]} Qc7 {[%emt 0:04:23]} 12. Rad1 {[%emt 0:02:44]} Nb6 {[%emt 0:02:59]} 13. h3 {[%emt 0:03:25]} d5 {[%emt 0:07:23]} 14. exd5 {[%emt 0:02:19]} Nbxd5 {[%emt 0:00:12]} 15. Nxd5 {[%emt 0:00:51]} Nxd5 {[%emt 0:00:16]} 16. Bf2 {[%emt 0:00:57]} Rfd8 {[%emt 0:03:07]} 17. Qc1 {[%emt 0:00:47]} Rac8 {[%emt 0:04:22]} 18. c3 {[%emt 0:01:16]} Nf4 {[%emt 0:02:10]} 19. Rxd8+ {[%emt 0:01:28]} Rxd8 {[%emt 0:00:53]} 20. Qe1 {[%emt 0:03:17]} Nxe2+ {[%emt 0:01:07]} 21. Qxe2 {[%emt 0:01:40]} Bc4 {[%emt 0:00:18]} 22. Qe1 {[%emt 0:00:46]} Bxf1 {[%emt 0:01:42]} 23. Qxf1 {[%emt 0:00:13]} Qd7 {[%emt 0:03:58]} 24. Qc4 {[%emt 0:01:16]} b5 {[%emt 0:02:31]} 25. Qe4 {[%emt 0:00:57]} Qd5 {[%emt 0:00:14]} 26. Qe3 {[%emt 0:00:31]} b4 {[%emt 0:05:20]} 27. Bg3 {[%emt 0:02:57]} bxc3 {[%emt 0:01:23]} 28. Qxc3 {[%emt 0:01:43]} Bf6 {[%emt 0:01:23]} 29. a3 {[%emt 0:02:57]} e4 {[%emt 0:00:49]} 30. Qe3 {[%emt 0:03:38]} exf3 {[%emt 0:00:39]} 31. gxf3 {[%emt 0:00:13]} Bxb2 {[%emt 0:01:19]} 0-1

[Event "Germany Countries-chT Youth 2022"]
[Site "Wiesbaden"]
[Date "2022.10.01"]
[Round "2"]
[White "Ignatova, Gabriela"]
[Black "Vasylenko, Nadeja"]
[Result "0-1"]
[ECO "C54"]
[WhiteElo "1099"]
[BlackElo "1261"]
[Annotator "NA RC COMBH"]
[PlyCount "47"]
[EventDate "2022.09.28"]
[EventType "team-tourn"]
[EventRounds "7"]
[EventCountry "GER"]
[SourceTitle "playchess.com"]
[Source "ChessBase"]
[SourceQuality "1"]
[TimeControl "40/5400+30:1800+30"]

1. e4 {[%emt 0:00:03]} e5 {[%emt 0:00:07]} 2. Nf3 {[%emt 0:00:07]} Nc6 {[%emt 0:00:07]} 3. Bc4 {[%emt 0:00:27]} Bc5 {[%emt 0:00:10]} 4. c3 {[%emt 0:00:42]} Nf6 {[%emt 0:00:35]} 5. d4 {[%emt 0:00:59]} exd4 {[%emt 0:00:39]} 6. cxd4 {[%emt 0:00:30]} Bb4+ {[%emt 0:00:40]} 7. Bd2 {[%emt 0:01:06]} Bxd2+ {[%emt 0:00:42]} 8. Nbxd2 {[%emt 0:00:31]} d6 {[%emt 0:04:11]} 9. d5 {[%emt 0:01:57]} Ne7 {[%emt 0:01:56]} 10. O-O {[%emt 0:01:37]} O-O {[%emt 0:01:28]} 11. h3 {[%emt 0:01:24]} Ng6 {[%emt 0:01:20]} 12. Re1 {[%emt 0:01:50]} Ne5 {[%emt 0:06:04]} 13. Nxe5 {[%emt 0:03:20]} dxe5 {[%emt 0:00:12]} 14. Nf3 {[%emt 0:01:15]} Qe7 {[%emt 0:01:28]} 15. Qb3 {[%emt 0:05:12]} Rd8 {[%emt 0:02:57]} 16. Ng5 {[%emt 0:08:28]} Qd6 {[%emt 0:10:25]} 17. Rad1 {[%emt 0:03:56]} h6 {[%emt 0:00:44]} 18. Ne6 {[%emt 0:00:34]} Re8 {[%emt 0:07:46]} 19. Bb5 {[%emt 0:03:00]} Re7 {[%emt 0:01:06]} 20. Qc3 {[%emt 0:10:46]} fxe6 {[%emt 0:04:59]} 21. dxe6 {[%emt 0:00:49]} Qb6 {[%emt 0:02:51]} 22. Rd8+ {[%emt 0:01:03]} Kh7 {[%emt 0:01:12]} 23. Qf3 {[%emt 0:05:00]} Qxe6 {[%emt 0:06:10]} 24. g4 {[%emt 0:04:06]} 0-1

[Event "Germany Countries-chT Youth 2022"]
[Site "Wiesbaden"]
[Date "2022.10.02"]
[Round "3"]
[White "Schmider, Niklas"]
[Black "Grossmann, Piet"]
[Result "1-0"]
[ECO "A05"]
[WhiteElo "2407"]
[BlackElo "1945"]
[Annotator "TA"]
[PlyCount "77"]
[EventDate "2022.09.28"]
[EventType "team-tourn"]
[EventRounds "7"]
[EventCountry "GER"]
[SourceTitle "playchess.com"]
[Source "ChessBase"]
[SourceQuality "1"]
[TimeControl "40/5400+30:1800+30"]

{[%evp 20,77,43,45,42,33,32,31,33,33,31,34,46,19,29,27,29,17,31,32,24,13,38,38,68,68,90,73,101,75,94,74,74,75,70,79,511,518,504,514,588,589,575,575,602,587,584,157,127,0,0,143,142,0,29977,29978,29977,9241,29987,29987]} 1. Nf3 {[%emt 0:00:05]} Nf6 {[%emt 0:00:10]} 2. g3 {[%emt 0:00:07]} e6 {[%emt 0:00:05]} 3. Bg2 {[%emt 0:00:05]} Be7 {[%emt 0:00:04]} 4. d4 {[%emt 0:00:07]} O-O {[%emt 0:00:06]} 5. c4 {[%emt 0:00:06]} d5 {[%emt 0:00:04]} 6. Nc3 {[%emt 0:00:28]} c5 {[%emt 0:12:04]} 7. cxd5 {[%emt 0:01:03]} exd5 {[%emt 0:02:14]} 8. O-O {[%emt 0:01:01]} c4 {[%emt 0:01:28]} 9. Bg5 {[%emt 0:05:54]} Nc6 {[%emt 0:06:37]} 10. Ne5 {[%emt 0:05:33]} Be6 {[%emt 0:03:33]} 11. b3 {[%emt 0:05:40]} cxb3 {[%emt 0:01:17] D34: Tarrasch Defence: 6 g3 Nf6 7 Bg2 Be7.} 12. axb3 {[%emt 0:01:12]} h6 {[%emt 0:02:57]} 13. Bxf6 {[%emt 0:02:14]} Bxf6 {[%emt 0:00:12] White is slightly better.} 14. Nxc6 {[%emt 0:00:10]} bxc6 {[%emt 0:00:03]} 15. Na4 {[%emt 0:01:38]} Bf5 {[%emt 0:05:05]} 16. Rc1 {[%emt 0:02:36]} Qd6 {[%emt 0:04:09]} 17. Qd2 {[%emt 0:03:04]} Rab8 {[%emt 0:04:26] [#]} 18. Rc3 $146 {[%emt 0:05:18]} ({Predecessor:} 18. Nc5 a5 19. e3 Rb5 20. Rc3 Be7 21. Rfc1 Rc8 22. Bf1 Rb4 23. Qa2 Bd8 24. Bd3 {1-0 (62) Chelushkina,I (2366)-Petrenko,S (2348) Belgrade 2003}) 18... Rfc8 {[%emt 0:18:47]} 19. Nc5 {[%emt 0:14:08]} Bd8 {[%emt 0:07:53]} 20. Qa2 {[%emt 0:02:54] Against Ba5} Bb6 {[%emt 0:02:46]} 21. Rfc1 {[%emt 0:00:42]} Re8 {[%emt 0:05:33]} 22. e3 {[%emt 0:01:08]} Rbc8 {[%emt 0:01:58]} 23. Qa4 {[%emt 0:01:33]} Re7 {[%emt 0:04:23]} 24. Bf1 {[%emt 0:01:57]} g6 {[%emt 0:06:15]} 25. Ba6 {[%emt 0:09:44]} Rcc7 {[%emt 0:01:18]} 26. Nd3 {[%emt 0:01:26]} Bxd3 {[%emt 0:01:07]} 27. Bxd3 {[%emt 0:00:09][%cal Rc3c6]} c5 $2 {[%emt 0:00:21][%mdl 8192]} (27... Re6 $16 {is tougher.}) 28. Qa3 $18 {[%emt 0:01:25]} Qf6 {[%emt 0:06:06]} 29. dxc5 {[%emt 0:00:46][%cal Bd4c5,Bc5b6,Bb6a7][%mdl 32]} d4 {[%emt 0:00:21]} 30. exd4 {[%emt 0:18:34]} Qxd4 {[%emt 0:00:09]} 31. cxb6 {[%emt 0:01:12]} Rxc3 {[%emt 0:00:13]} 32. Rxc3 {[%emt 0:00:04]} Re1+ {[%emt 0:00:51] [#]} 33. Bf1 $2 {[%emt 0:00:16]} (33. Kg2 $1 $18 {is the precise move to win. Threatening mate with Rc8+.} Qxc3 34. bxa7 Qc6+ 35. f3) 33... Qxc3 {[%emt 0:01:03]} 34. bxa7 {[%emt 0:00:14]} Rxf1+ $1 {[%emt 0:00:17][%mdl 64] Remove Defender} 35. Kxf1 $16 {[%emt 0:00:08] KQ-KQ} Qd3+ {[%emt 0:00:18] [#]} 36. Kg1 {[%emt 0:02:53]} ({White must play} 36. Ke1 $1 $16 Qc3+ 37. Ke2 Qc2+ 38. Ke3 Qc3+ 39. Ke4 Qc6+ 40. Kd3 Qf3+ 41. Kc4 Qe4+ 42. Kc3 Qe5+ 43. Kd3 Qf5+ 44. Kd4 Qf6+ 45. Kd3 (45. Ke3 Qc3+ 46. Ke4 Qc6+ 47. Kd3 Qf3+ 48. Kd4 Qf6+ 49. Ke4 Qc6+ $16) 45... Qf3+ 46. Kd4 Qf6+ 47. Ke4 (47. Ke3 Qe5+ 48. Kf3 Qf5+ 49. Ke3 Qe5+ 50. Kd2 Qd4+ 51. Kc1 Qc3+ 52. Kb1 Qd3+ 53. Ka2 Qe2+ 54. Qb2 Qa6+ 55. Kb1 Qxa7 $16) 47... Qe6+ 48. Kd4 Qf6+) 36... Qd1+ $2 {[%emt 0:00:18][%mdl 8192]} (36... Qb1+ $11 37. Kg2 Qe4+ 38. Kf1 Qd3+ 39. Ke1 (39. Kg1 Qb1+ 40. Kg2 Qe4+ 41. Kf1 Qd3+ $16) 39... Qe4+ 40. Kd2 Qd4+ 41. Kc1 Qc3+ 42. Kb1 Qd3+ 43. Ka2 Qd2+ 44. Qb2 Qa5+ 45. Kb1 (45. Qa3 Qd2+ 46. Qb2 Qa5+ 47. Kb1 Qxa7 $16) 45... Qxa7) 37. Kg2 {[%emt 0:00:06]} Qd5+ {[%emt 0:00:06]} 38. f3 {[%emt 0:00:09]} Qd2+ {[%emt 0:01:06]} 39. Kh3 {[%emt 0:00:17] Weighted Error Value: White=0.40/Black=0.79} 1-0

[Event "Germany Countries-chT Youth 2022"]
[Site "Wiesbaden"]
[Date "2022.10.02"]
[Round "3"]
[White "Kolb, Tobias"]
[Black "Sommer, Justus"]
[Result "1-0"]
[ECO "D35"]
[WhiteElo "2357"]
[BlackElo "2122"]
[Annotator "TA"]
[PlyCount "67"]
[EventDate "2022.09.28"]
[EventType "team-tourn"]
[EventRounds "7"]
[EventCountry "GER"]
[SourceTitle "playchess.com"]
[Source "ChessBase"]
[SourceQuality "1"]
[TimeControl "40/5400+30:1800+30"]

{[%evp 15,67,20,11,11,24,22,11,0,0,8,41,31,25,10,14,8,76,37,28,37,92,106,154,164,154,168,150,160,174,166,152,163,234,225,547,431,400,408,417,385,306,96,300,293,408,374,464,270,1446,1418,29991,29992,29995,29996]} 1. d4 {[%emt 0:00:01]} d5 {[%emt 0:00:24]} 2. c4 {[%emt 0:00:02]} e6 {[%emt 0:00:11]} 3. Nc3 {[%emt 0:00:03]} Nf6 {[%emt 0:00:10]} 4. cxd5 {[%emt 0:00:03]} exd5 {[%emt 0:00:06]} 5. Bg5 {[%emt 0:00:02]} Be7 {[%emt 0:00:23]} 6. e3 {[%emt 0:00:02]} h6 {[%emt 0:00:51]} 7. Bh4 {[%emt 0:00:46]} O-O {[%emt 0:00:48]} 8. Bd3 {[%emt 0:00:30]} c6 {[%emt 0:01:26]} 9. Nge2 $1 {[%emt 0:00:28][%mdl 4] is currently scoring better than 9.Qc2. D35: Queen's Gambit Declined: Exchange Variation.} Re8 {[%emt 0:00:21]} 10. O-O {[%emt 0:00:04]} Nbd7 {[%emt 0:00:43]} 11. a4 {[%emt 0:07:01] The position is equal.} a5 {[%emt 0:07:05]} 12. f3 {[%emt 0:00:41][%cal Bf2f3,Bf3e4,Be4e5][%mdl 32] [#]} Qb6 $146 {[%emt 0:12:13][%cal Of6g4]} ({Predecessor:} 12... Nf8 13. Kh1 Qb6 14. Qd2 Be6 15. Bf2 Rad8 16. Rad1 Bb4 17. Qc1 Qc7 18. Bg3 Qe7 {0-1 (50) Santos Latasa,J (2680)-Korobov,A (2671) Bydgoszcz 2022}) 13. Bf2 {[%emt 0:15:40]} Nf8 {[%emt 0:08:11]} 14. Qd2 {[%emt 0:04:56]} Bb4 {[%emt 0:05:22]} 15. Kh1 {[%emt 0:01:00]} Ne6 {[%emt 0:04:18]} (15... Bd7 $11) 16. e4 $1 $16 {[%emt 0:03:47]} dxe4 {[%emt 0:10:11]} 17. fxe4 {[%emt 0:01:19]} Ng5 {[%emt 0:02:44]} ({Black should play} 17... Qd8 $14) 18. e5 {[%emt 0:04:04]} Nfe4 {[%emt 0:03:42]} 19. Qf4 {[%emt 0:00:22]} Nxf2+ {[%emt 0:01:08]} 20. Rxf2 {[%emt 0:00:04][%cal Bf1f2,Bf2f3,Bf3g3][%mdl 32]} Be6 {[%emt 0:01:51]} 21. h4 {[%emt 0:10:46]} Nh7 {[%emt 0:00:52][%cal Bg5h7,Bh7f8,Bf8g6][%mdl 32]} 22. Qe4 $1 {[%emt 0:04:37]} Nf8 {[%emt 0:01:11]} 23. Nf4 $1 {[%emt 0:00:56]} Bb3 {[%emt 0:02:52]} (23... Bg4 $142) 24. Nh5 $18 {[%emt 0:01:40]} Be6 $2 {[%emt 0:11:03]} (24... Re6 25. Nf6+ gxf6 26. Qg4+ Kh8) 25. Rf3 {[%emt 0:03:23]} Rad8 {[%emt 0:02:56]} 26. Rg3 {[%emt 0:01:00]} Ng6 {[%emt 0:00:45]} 27. Ne2 {[%emt 0:02:51] And now Rxg6 would win.} (27. Rxg6 Qxd4 28. Rxg7+ Kf8 $18) 27... Bd5 {[%emt 0:02:40]} 28. Qe3 $40 {[%emt 0:01:59][%mdl 128] Black is in trouble.} ({Don't do} 28. Nf6+ gxf6 29. Rxg6+ Kf8 $18) (28. Qf5 $18 {has better winning chances. Strongly threatening Rxg6.} Be6 29. Nf6+ $1 Kf8 30. Qh5 gxf6 31. Bxg6 (31. exf6 Bd2 $18) (31. Qxh6+ Ke7 $11)) 28... Rxe5 $2 {[%emt 0:04:00] Loses the game.} 29. dxe5 {[%emt 0:00:14] The board is on fire.} Bc5 {[%emt 0:00:06]} 30. Qc1 {[%emt 0:02:02]} Bf2 {[%emt 0:01:07]} 31. Bxg6 {[%emt 0:00:30]} (31. Rg4 $142 Be6 {[#]} 32. Nf6+ $1 {[%mdl 512]} Kh8 33. Bxg6 Bxg4 34. Nxg4 fxg6 35. e6 Bxh4 36. Ne5) 31... fxg6 $2 {[%emt 0:05:49]} (31... Bxg3 32. Bxf7+ (32. Nexg3 fxg6 33. Nf4 Qd4 $16) 32... Bxf7 33. Nhxg3 (33. Nexg3 Qb4 $18) 33... Re8) 32. Rxg6 {[%emt 0:00:43] White threatens Qxh6 and mate.} Be3 {[%emt 0:00:26]} 33. Rxg7+ {[%emt 0:00:43]} Kh8 {[%emt 0:00:14]} 34. Qc2 {[%emt 0:00:16] Weighted Error Value: White=0.37/Black=0.66} 1-0